bitfinex/quotes_ETHUSD_20250605
["timestamp","ask_amount","ask_price","bid_price","bid_amount"]
[1749131055046,3.82687229,2613.1,2613.0,16.477]
[1749131055471,0.17,2613.3,2613.0,16.477]
[1749131055676,3.82679283,2613.2,2613.0,16.477]
[1749131056361,0.6,2613.1,2613.0,32.477]
[1749131058173,0.6,2613.1,2613.0,36.30401875]
[1749131058374,0.6,2613.1,2613.0,40.14625647]
[1749131059781,0.6,2613.1,2613.0,36.31923772]
[1749131060083,0.6,2613.1,2613.0,40.14625647]
[1749131060288,0.6,2613.1,2613.0,36.31923772]
[1749131060495,3.82643299,2613.4,2613.1,16.0]
[1749131060860,3.82584742,2613.8,2613.1,16.0]
[1749131061064,3.82628658,2613.5,2613.1,16.0]
[1749131061291,3.8264285,2613.5,2613.1,16.0]
[1749131061489,3.82646397,2613.4,2613.1,16.0]
[1749131061706,3.82663835,2613.3,2613.1,16.0]
[1749131061876,3.82672585,2613.2,2613.0,8.257]
[1749131062076,3.82672585,2613.2,2613.1,8.218]
[1749131062281,3.82687229,2613.1,2613.0,8.257]
[1749131062498,3.82687229,2613.1,2613.0,16.475]
[1749131062921,3.82687229,2613.1,2613.0,8.257]
[1749131063137,4.59223492,2613.1,2613.0,10.008]
[1749131063443,3.82680656,2613.2,2613.0,16.475]
[1749131063603,3.82687229,2613.1,2613.0,16.475]
[1749131064152,3.82680686,2613.2,2613.0,16.475]
[1749131064852,3.82665826,2613.3,2613.0,16.475]
[1749131065139,0.17,2613.5,2613.1,16.0]
[1749131065352,3.8259938,2613.7,2613.1,19.6302083]
[1749131065550,3.82687229,2613.1,2613.0,8.257]
[1749131065703,3.82687229,2613.1,2613.0,32.475]
[1749131065899,3.82687229,2613.1,2613.0,10.008]
[1749131066436,4.37687229,2613.1,2613.0,16.475]
[1749131066812,4.37687229,2613.1,2613.0,10.008]
[1749131067006,6.27987234,2613.1,2613.0,8.257]
[1749131067336,7.61657234,2613.1,2613.0,8.257]
[1749131067541,7.61657234,2613.1,2613.0,16.475]
[1749131068633,7.61657234,2613.1,2613.0,8.257]
[1749131068941,7.61657234,2613.1,2613.0,16.475]
[1749131069536,7.61657234,2613.1,2613.0,10.008]
[1749131069951,23.61657234,2613.1,2613.0,8.257]
[1749131070101,3.82819079,2612.2,2612.1,0.02]
[1749131070305,3.82819079,2612.2,2612.1,16.498]
[1749131072579,1.9752,2612.6,2612.2,16.0]
[1749131072781,3.82797879,2612.4,2612.2,16.0]
[1749131072966,3.82804425,2612.3,2612.2,16.0]
[1749131073175,3.82819079,2612.2,2612.1,10.031]
[1749131073479,3.82819079,2612.2,2612.1,16.498]
[1749131074080,0.17,2612.5,2612.1,16.498]
[1749131074289,3.82819079,2612.2,2612.1,8.28]
[1749131074593,3.82819079,2612.2,2612.1,16.498]
[1749131075707,4.37819079,2612.2,2612.1,16.499]
[1749131075999,3.82819079,2612.2,2612.1,16.499]
[1749131076210,0.17,2612.5,2612.1,16.499]
[1749131076395,3.82819079,2612.2,2612.1,16.499]
[1749131077316,0.17,2612.5,2612.2,16.0]
[1749131077765,3.8276695,2612.6,2612.2,16.0]
[1749131078293,3.8276695,2612.6,2612.3,22.468]
[1749131078294,3.82790043,2612.4,2612.3,22.468]
[1749131078801,3.82781085,2612.5,2612.3,22.468]
[1749131079105,3.82789771,2612.4,2612.3,22.468]
[1749131079333,3.82772015,2612.6,2612.3,22.468]
[1749131079486,3.82775694,2612.5,2612.3,22.468]
[1749131079686,3.82769083,2612.6,2612.3,22.468]
[1749131080070,3.82775522,2612.5,2612.3,22.468]
[1749131080276,3.82775522,2612.5,2612.3,26.26581609]
[1749131080478,3.82783335,2612.5,2612.3,22.468]
[1749131080690,3.82783335,2612.5,2612.1,11.6819]
[1749131080917,3.82783335,2612.5,2612.2,1.751]
[1749131081910,3.8276705,2612.6,2612.3,6.467]
[1749131082137,3.8278318,2612.5,2612.3,6.467]
[1749131082280,3.82789771,2612.4,2612.3,6.467]
[1749131082476,3.82781566,2612.5,2612.2,1.751]
[1749131082675,0.17,2612.8,2612.3,6.467]
[1749131082676,3.82795784,2612.4,2612.3,6.467]
[1749131082913,3.82771386,2612.6,2612.3,6.467]
[1749131083272,3.82776625,2612.5,2612.3,6.467]
[1749131083678,3.99776625,2612.5,2612.3,6.467]
[1749131084083,0.17,2612.5,2612.3,12.3277661]
[1749131084384,0.17,2612.5,2612.3,8.49972591]
[1749131085289,3.82657942,2613.3,2612.7,3.82732229]
[1749131085489,9.4423024,2614.0,2612.3,17.94202831]
[1749131085490,1.3027,2613.7,2612.8,8.218]
[1749131085802,3.82640262,2613.5,2613.0,3.82692199]
[1749131086008,3.82619046,2613.6,2613.1,3.82677386]
[1749131086179,3.82576365,2613.9,2613.2,16.0]
[1749131086383,1.4269,2614.2,2613.3,10.29350935]
[1749131086586,3.82593815,2613.8,2613.4,10.012]
[1749131086923,3.82592174,2613.8,2613.4,10.012]
[1749131087096,3.82570408,2613.9,2613.4,14.29010712]
[1749131087297,3.82599924,2613.7,2613.4,10.46378788]
[1749131087504,3.82601685,2613.7,2613.4,8.261]
[1749131087809,3.82607495,2613.7,2613.5,8.218]
[1749131088784,3.8260435,2613.7,2613.5,8.218]
[1749131089124,3.82592342,2613.8,2613.4,8.261]
[1749131089415,3.82571139,2613.9,2613.5,8.214]
[1749131089582,3.82585778,2613.8,2613.5,8.214]
[1749131089779,3.82578291,2613.9,2613.5,8.214]
[1749131090046,3.82530949,2614.2,2613.5,14.49194173]
[1749131090185,3.82526203,2614.2,2613.6,2.831744]
[1749131090384,3.82555962,2614.0,2613.6,5.645939]
[1749131090691,3.82548834,2614.1,2613.6,7.01606153]
[1749131090892,3.82556264,2614.0,2613.6,4.905907]
[1749131091092,17.3017,2614.5,2613.6,4.905907]
[1749131091093,21.12653712,2614.5,2613.7,10.0]
[1749131091320,3.82581183,2613.9,2613.5,8.214]
[1749131091532,3.82585832,2613.8,2613.4,8.261]
[1749131091821,3.82540836,2614.1,2613.5,8.213]
[1749131092028,3.82607471,2613.7,2613.5,8.213]
[1749131092180,3.82591651,2613.8,2613.5,8.213]
[1749131092922,3.82563043,2614.0,2613.5,12.03927905]
[1749131093120,3.82571262,2613.9,2613.5,8.213]
[1749131093519,3.82563612,2614.0,2613.6,16.0]
[1749131093720,0.55,2614.6,2613.6,16.0]
[1749131093721,3.82572556,2613.9,2613.6,16.0]
[1749131093934,3.82583321,2613.9,2613.6,16.0]
[1749131094094,3.82577036,2613.9,2613.6,16.0]
[1749131094424,3.82584775,2613.8,2613.6,16.0]
[1749131094815,3.8259938,2613.7,2613.6,16.0]
[1749131094990,3.8259938,2613.7,2613.6,24.213]
[1749131095686,4.59103228,2613.8,2613.4,8.261]
[1749131095687,3.82628658,2613.5,2613.4,24.261]
[1749131095914,3.82628658,2613.5,2613.4,32.473]
[1749131096188,5.12408658,2613.5,2613.4,10.01]
[1749131096387,16.01141437,2613.5,2613.4,8.261]
[1749131096721,6.56911197,2613.5,2613.4,16.473]
[1749131096927,4.72131197,2613.5,2613.4,16.473]
[1749131097128,4.72131197,2613.5,2613.4,10.01]
[1749131097285,4.72131197,2613.5,2613.4,16.473]
[1749131098689,5.27131197,2613.5,2613.4,8.261]
[1749131098894,5.27131197,2613.5,2613.4,16.473]
[1749131099794,6.65681197,2613.5,2613.4,10.01]
[1749131099993,6.10681197,2613.5,2613.4,16.473]
[1749131100852,6.10681197,2613.5,2612.3,9.4423024]
[1749131100853,1.3932,2613.0,2612.1,0.02]
[1749131101053,5.22025666,2613.0,2612.3,16.0]
[1749131101352,5.22025666,2613.0,2612.2,16.47]
[1749131101353,3.82771001,2612.6,2612.2,16.47]
[1749131101486,3.82726124,2612.9,2612.5,16.0]
[1749131101834,3.82745818,2612.7,2612.6,32.47]
[1749131102125,3.82745818,2612.7,2612.6,26.007]
[1749131102440,3.82745818,2612.7,2612.6,16.47]
[1749131103994,3.82770071,2612.6,2612.1,3.82833624]
[1749131104191,3.82781812,2612.5,2612.2,1.749]
[1749131104419,3.82745818,2612.7,2612.2,1.749]
[1749131104420,3.82767853,2612.6,2612.2,1.749]
[1749131104619,3.82753685,2612.7,2612.2,7.13488939]
[1749131104847,3.82753685,2612.7,2612.3,3.82804311]
[1749131105161,3.82753685,2612.7,2612.4,6.463]
[1749131105364,0.6106812,2613.4,2612.4,6.463]
[1749131105668,1.3277,2614.0,2612.7,10.0]
[1749131105974,5.15302164,2614.2,2613.1,10.0]
[1749131106120,5.1536938,2613.7,2612.8,8.212]
[1749131106328,3.82709494,2613.0,2612.9,8.259]
[1749131106635,3.82676959,2613.2,2612.9,16.471]
[1749131106968,3.82687825,2613.1,2612.9,10.008]
[1749131107132,3.82687825,2613.1,2612.9,8.259]
[1749131107133,3.82701875,2613.0,2612.9,8.259]
[1749131107334,3.82701875,2613.0,2612.9,16.471]
[1749131107541,4.59240845,2613.0,2612.9,8.259]
[1749131107768,14.58471085,2613.0,2612.9,10.008]
[1749131107922,14.58471085,2613.0,2612.9,16.471]
[1749131108117,30.58471085,2613.0,2612.9,10.008]
[1749131108422,3.82892368,2611.7,2611.6,0.38083983]
[1749131108745,3.82884183,2611.8,2611.6,8.212]
[1749131109058,3.82869863,2611.9,2611.6,8.212]
[1749131109242,3.82868166,2611.9,2611.6,8.212]
[1749131109560,3.8287726,2611.9,2611.6,8.212]
[1749131109761,3.8287726,2611.9,2611.6,9.41613584]
[1749131109923,3.8282212,2612.2,2611.6,9.41613584]
[1749131110118,3.82841817,2612.1,2611.6,13.24517272]
[1749131110327,3.82856614,2612.0,2611.6,9.41613584]
[1749131110525,3.82861292,2612.0,2611.6,9.41613584]
[1749131110760,3.82885463,2611.8,2611.4,16.0]
[1749131110937,3.82885525,2611.8,2611.5,8.213]
[1749131111336,5.24998476,2612.5,2611.5,12.04208575]
[1749131111533,1.4221,2612.5,2611.7,16.0]
[1749131111762,3.82811623,2612.3,2611.8,3.82875316]
[1749131111979,3.82795804,2612.4,2611.9,11.67548656]
[1749131112275,0.55,2612.4,2611.4,0.38820058]
[1749131112475,3.82876759,2611.9,2611.5,1.749]
[1749131112683,3.82965686,2611.2,2611.1,0.02]
[1749131112984,3.82965686,2611.2,2611.1,1.769]
[1749131113355,3.82965686,2611.2,2611.1,8.233]
[1749131113852,3.82945428,2611.4,2611.1,9.0563]
[1749131114056,3.82926774,2611.5,2611.1,9.0563]
[1749131114256,1.3716,2611.8,2611.1,9.0563]
[1749131114257,3.82920545,2611.6,2611.1,9.0563]
[1749131114747,3.829254,2611.5,2611.1,9.0563]
[1749131115142,1.3076,2612.1,2611.2,16.0]
[1749131115456,1.3076,2612.1,2611.3,2.50563]
[1749131115654,3.82883473,2611.8,2611.4,10.0]
[1749131115851,3.82862448,2612.0,2611.4,3.8293593]
[1749131116081,5.19160178,2612.3,2611.4,10.0]
[1749131116281,3.82885553,2611.8,2611.3,6.33506461]
[1749131116442,3.82896117,2611.7,2611.4,9.89550646]
[1749131117080,3.82885122,2611.8,2611.4,9.89550646]
[1749131117258,3.82892778,2611.7,2611.4,9.89550646]
[1749131117644,3.82892658,2611.7,2611.4,9.89550646]
[1749131117870,3.82888064,2611.8,2611.4,9.89550646]
[1749131118067,3.82892476,2611.7,2611.5,1.24011365]
[1749131118283,3.82892476,2611.7,2611.6,6.465]
[1749131118849,3.82921692,2611.5,2611.4,8.262]
[1749131119064,3.82921692,2611.5,2611.4,16.477]
[1749131119448,3.82921692,2611.5,2611.4,16.476]
[1749131120146,6.12019564,2611.5,2611.4,10.011]
[1749131120597,6.12019564,2611.5,2611.4,16.476]
[1749131120782,6.12019564,2611.5,2611.4,10.011]
[1749131120986,6.12019564,2611.5,2611.4,16.476]
[1749131121370,6.67019564,2611.5,2611.4,8.262]
[1749131121545,6.67019564,2611.5,2611.1,0.02]
[1749131121546,3.82965686,2611.2,2611.1,0.02]
[1749131121747,16.0028613,2611.2,2611.1,16.497]
[1749131121979,16.0028613,2611.2,2611.1,10.032]
[1749131122189,16.0028613,2611.2,2611.1,16.498]
[1749131122373,6.5605589,2611.2,2611.1,16.498]
[1749131122550,16.0028613,2611.2,2611.1,16.498]
[1749131122975,4.3800969,2610.9,2610.8,0.005]
[1749131123249,15.94208934,2610.9,2610.8,16.484]
[1749131123451,22.49978694,2610.9,2610.8,8.268]
[1749131123649,5.72539031,2610.7,2610.6,1.06769587]
[1749131123845,21.72539031,2610.7,2610.3,1.749]
[1749131124048,5.17759236,2609.2,2609.1,0.02]
[1749131124362,30.61989476,2609.2,2609.1,0.02]
[1749131124684,3.8340618,2608.2,2607.3,0.88369155]
[1749131124883,3.8340618,2608.2,2608.1,6.645]
[1749131125085,1.3021,2608.3,2608.1,6.645]
[1749131125387,3.8340356,2608.3,2608.2,6.626]
[1749131125547,3.83357071,2608.6,2608.2,6.626]
[1749131125748,10.7775024,2608.7,2608.1,0.6845]
[1749131125749,3.83393282,2608.3,2608.1,0.6845]
[1749131126005,3.83332694,2608.7,2608.2,6.633]
[1749131126182,9.4423024,2608.8,2608.2,6.633]
[1749131126491,3.83380865,2608.4,2608.3,8.264]
[1749131126653,13.27611105,2608.4,2608.3,8.264]
[1749131127065,13.82611105,2608.4,2608.3,8.264]
[1749131127265,14.58010084,2608.4,2608.3,16.725]
[1749131127483,3.83380865,2608.4,2608.3,16.725]
[1749131127763,3.83380865,2608.4,2608.3,16.734]
[1749131127958,3.83380865,2608.4,2608.3,16.733]
[1749131128398,3.83380865,2608.4,2608.3,16.732]
[1749131128583,12.76412723,2608.4,2608.3,16.731]
[1749131128906,15.78200246,2608.4,2608.3,16.731]
[1749131129073,15.78200246,2608.4,2608.3,8.264]
[1749131129274,3.834944,2607.6,2607.5,0.15472454]
[1749131129485,3.834944,2607.6,2607.5,10.24472454]
[1749131129806,3.834944,2607.6,2607.5,16.90172454]
[1749131130109,7.30444995,2607.6,2607.5,16.90272454]
[1749131130411,20.38553237,2607.2,2607.1,0.02]
[1749131130572,14.10395095,2607.2,2607.1,0.02]
[1749131130772,3.83700406,2606.2,2606.1,0.02]
[1749131130972,3.83700406,2606.2,2606.1,16.806]
[1749131131212,3.83700406,2606.2,2606.1,8.29]
[1749131131392,1.73922886,2606.2,2606.1,8.517]
[1749131131578,3.83700406,2606.2,2606.1,8.517]
[1749131131780,1.3381,2606.4,2606.1,6.695]
[1749131131981,1.3381,2606.4,2605.2,16.0]
[1749131132184,3.83818223,2605.4,2605.3,0.32041707]
[1749131132614,4.38818223,2605.4,2605.3,7.02241707]
[1749131132916,1.3946,2605.4,2605.0,6.736]
[1749131133100,1.3821,2605.9,2605.0,6.736]
[1749131133301,3.83677884,2606.4,2605.1,8.13766]
[1749131133500,5.23092373,2606.4,2605.6,3.83780285]
[1749131133721,0.31862114,2606.3,2605.6,0.1999]
[1749131134017,0.31862114,2606.3,2605.7,6.754]
[1749131134315,0.31862114,2606.3,2605.0,16.310106]
[1749131134471,0.31862114,2606.3,2605.3,3.83820634]
[1749131134671,0.31862114,2606.3,2605.4,6.77]
[1749131134871,8.69893972,2606.3,2605.5,16.0]
[1749131135114,3.83773269,2605.8,2605.0,20.34868994]
[1749131135411,0.31862114,2605.7,2605.1,2.43874638]
[1749131135638,0.31862114,2605.7,2605.2,16.0]
[1749131135975,4.15640312,2605.7,2605.3,6.768]
[1749131136170,4.15637139,2605.7,2605.4,6.772]
[1749131136377,4.15637139,2605.7,2605.1,3.83853604]
[1749131136378,0.31862114,2605.7,2605.5,16.959]
[1749131136590,3.83788762,2605.6,2605.5,16.959]
[1749131136813,0.31862114,2605.6,2605.5,16.959]
[1749131137018,0.31862114,2605.6,2605.5,9.9719]
[1749131137327,0.31862114,2605.6,2605.5,8.276]
[1749131137524,0.31862114,2605.6,2605.5,16.97]
[1749131137726,0.31862114,2605.6,2605.5,32.971]
[1749131138216,0.31862114,2605.6,2605.5,24.276]
[1749131138416,0.31862114,2605.6,2605.5,40.48619792]
[1749131138584,0.31862114,2605.6,2605.5,44.52833564]
[1749131138779,0.05974146,2605.6,2605.5,44.52833564]
[1749131139118,9.79501858,2607.0,2605.9,16.0]
[1749131139333,9.79501858,2607.0,2605.7,16.0]
[1749131139535,9.79501858,2607.0,2605.8,1.906]
[1749131139683,3.83711407,2606.2,2605.9,16.0]
[1749131139887,3.83656244,2606.5,2605.6,16.0]
[1749131140087,3.83713354,2606.2,2605.7,8.7]
[1749131140390,3.83722906,2606.1,2605.8,8.7]
[1749131140593,3.83643922,2606.6,2605.7,10.0]
[1749131140794,0.31862114,2606.0,2605.7,1.01999]
[1749131141015,0.31862114,2606.0,2605.8,1.906]
[1749131141326,0.31862114,2606.0,2605.9,1.906]
[1749131141545,3.83744616,2605.9,2605.4,0.51]
[1749131141740,4.15591968,2606.0,2605.9,1.906]
[1749131141959,3.83774033,2605.7,2604.3,0.2086]
[1749131142109,3.83774033,2605.7,2604.4,1.906]
[1749131142110,3.83950854,2604.5,2604.4,1.906]
[1749131142309,3.83862423,2605.1,2604.4,12.5495793]
[1749131142550,1.2945,2605.6,2604.7,3.83913991]
[1749131142758,5.13242852,2605.6,2604.8,15.2438315]
[1749131142957,6.8572576,2606.0,2604.9,18.59357101]
[1749131143273,3.83747395,2605.9,2605.4,3.8381098]
[1749131143562,0.31862114,2605.8,2605.5,3.843339]
[1749131143727,0.31862114,2605.8,2605.5,12.55091745]
[1749131143924,0.31862114,2605.8,2605.6,8.713]
[1749131144329,0.31862114,2605.8,2605.4,16.2086]
[1749131144544,0.31862114,2605.8,2605.5,8.712]
[1749131144860,0.31862114,2605.8,2605.7,16.0]
[1749131145076,0.31862114,2605.8,2605.7,27.11964]
[1749131145364,0.02,2606.9,2606.0,16.0]
[1749131145571,0.02,2606.9,2606.5,3.83643673]
[1749131145712,0.02,2606.9,2606.6,16.0]
[1749131145915,0.02,2606.9,2606.5,3.83643673]
[1749131145916,3.85601617,2606.9,2606.7,6.814]
[1749131146245,0.02,2606.9,2606.8,6.812]
[1749131146450,0.02,2606.9,2606.8,16.997]
[1749131146757,3.85597376,2606.9,2606.8,17.003]
[1749131146938,0.02,2606.9,2606.8,8.279]
[1749131147259,3.85597376,2606.9,2606.8,17.003]
[1749131147424,6.00215549,2606.9,2606.8,10.185]
[1749131147619,6.00215549,2606.9,2606.8,17.004]
[1749131148163,5.23297376,2606.9,2606.8,17.006]
[1749131148350,5.23297376,2606.9,2605.7,3.67840494]
[1749131148351,3.83724478,2606.1,2605.7,3.30435244]
[1749131148508,3.83650622,2606.6,2605.3,3.311]
[1749131148509,3.83656156,2606.6,2605.8,17.016]
[1749131148712,3.83723351,2606.1,2605.9,16.0]
[1749131148964,3.83744579,2605.9,2605.8,8.279]
[1749131149117,3.83744579,2605.9,2605.8,17.016]
[1749131149316,3.83744579,2605.9,2605.8,10.185]
[1749131149540,4.73504118,2605.9,2605.8,17.016]
[1749131149773,4.73504118,2605.9,2605.8,10.185]
[1749131149941,4.73504118,2605.9,2605.8,17.015]
[1749131150336,3.83744579,2605.9,2605.8,17.012]
[1749131150668,12.21776437,2605.9,2605.8,8.279]
[1749131150860,13.52326437,2605.9,2605.8,17.015]
[1749131152278,13.52326437,2605.9,2604.1,0.02]
[1749131152279,4.38774033,2605.7,2605.6,8.281]
[1749131152473,12.76805891,2605.7,2605.6,17.015]
[1749131152792,14.55917411,2605.7,2605.6,17.015]
[1749131152984,14.00917411,2605.7,2605.6,17.015]
[1749131153441,14.55917411,2605.7,2605.6,17.014]
[1749131153640,14.91476296,2605.7,2605.6,17.013]
[1749131153947,11.85042263,2605.7,2604.3,1.907]
[1749131154161,5.16335084,2604.2,2604.1,0.02]
[1749131154548,5.71335084,2604.2,2604.1,0.02]
[1749131154751,13.89981174,2604.2,2604.1,0.02]
[1749131154975,14.44981174,2604.2,2604.1,0.02]
[1749131155273,3.84114508,2603.4,2603.2,8.282]
[1749131155476,0.35606854,2604.0,2603.3,1.907]
[1749131155687,3.84125741,2603.4,2603.3,8.764]
[1749131155863,3.84127837,2603.3,2603.2,8.282]
[1749131156077,3.84127837,2603.3,2603.2,17.044]
[1749131156586,3.58088691,2604.2,2603.2,18.7524]
[1749131156587,3.84120477,2603.4,2603.2,18.7524]
[1749131156891,3.84120525,2603.4,2603.3,8.844]
[1749131157074,3.84127837,2603.3,2603.2,8.282]
[1749131157262,3.84122256,2603.4,2603.2,17.125]
[1749131157442,16.15701979,2604.2,2603.2,20.96640185]
[1749131157774,3.58088691,2604.2,2603.4,0.2286]
[1749131157975,3.84056907,2603.8,2603.5,16.21316084]
[1749131158178,1.3234,2604.2,2603.5,16.0]
[1749131158368,3.84070065,2603.7,2603.6,8.843]
[1749131158674,3.84070065,2603.7,2603.6,0.21315834]
[1749131158880,1.3927,2604.6,2603.6,9.05415834]
[1749131159073,3.83965596,2604.4,2603.7,25.05615834]
[1749131159275,2.42500186,2604.6,2603.8,0.21315834]
[1749131159479,3.84018755,2604.1,2603.9,0.35514515]
[1749131159664,3.84018755,2604.1,2604.0,0.3551449]
[1749131159982,3.84006176,2604.2,2604.0,8.84]
[1749131160166,1.3927,2604.6,2603.7,16.0]
[1749131160372,3.84039325,2603.9,2603.8,9.05708177]
[1749131160566,3.84039325,2603.9,2603.8,25.19915699]
[1749131160771,3.84039325,2603.9,2603.8,25.20015699]
[1749131160969,3.84113082,2603.4,2603.3,0.51]
[1749131161168,3.84113082,2603.4,2603.3,9.20220139]
[1749131161347,3.84113082,2603.4,2603.3,0.35519608]
[1749131161682,3.84127837,2603.3,2603.2,8.282]
[1749131161889,3.84127837,2603.3,2603.2,17.132]
[1749131162241,3.84127837,2603.3,2603.2,8.282]
[1749131162452,3.84127837,2603.3,2603.2,10.62109369]
[1749131162772,4.60951929,2603.3,2603.2,17.128]
[1749131162972,3.84053039,2603.9,2603.2,17.3410565]
[1749131163143,3.84113082,2603.4,2603.3,0.3550163]
[1749131163345,3.84113082,2603.4,2603.2,8.282]
[1749131163554,3.84127837,2603.3,2603.2,8.282]
[1749131163755,5.12928762,2603.3,2603.2,17.15]
[1749131163982,3.84127837,2603.3,2603.2,17.15]
[1749131164186,3.84127837,2603.3,2603.2,17.50509419]
[1749131164342,3.84127837,2603.3,2603.2,17.15]
[1749131165162,12.77159695,2603.3,2603.2,10.266]
[1749131165486,12.77159695,2603.3,2603.1,0.02]
[1749131165487,5.80912593,2603.2,2603.1,0.02]
[1749131166061,5.25912593,2603.2,2603.1,8.891]
[1749131166248,5.80912593,2603.2,2603.1,0.02]
[1749131166451,5.80912593,2603.2,2603.1,8.899]
[1749131166648,15.53859866,2603.2,2603.1,0.02]
[1749131166847,15.53859866,2603.2,2603.1,8.899]
[1749131167060,13.63944451,2603.2,2603.1,8.899]
[1749131167401,1.352,2603.6,2603.1,8.899]
[1749131167705,1.352,2604.5,2603.4,23.95738]
[1749131167873,3.8401268,2604.1,2603.6,3.84079326]
[1749131168228,3.84017351,2604.1,2603.7,8.897]
[1749131168401,3.83967717,2604.4,2603.9,3.84033441]
[1749131168562,1.3152,2604.9,2603.8,0.2286]
[1749131168761,3.83933192,2604.7,2604.1,3.84002333]
[1749131168973,3.8396192,2604.5,2604.2,6.911]
[1749131169213,3.83873066,2605.1,2604.3,8.288]
[1749131169374,3.83881515,2605.0,2604.4,2.78004846]
[1749131169722,3.83856153,2605.2,2604.5,16.56742361]
[1749131170004,3.8376753,2605.8,2605.1,10.0]
[1749131170163,0.02,2605.9,2605.0,3.83877159]
[1749131170164,0.02,2605.9,2605.2,24.905]
[1749131170502,0.02,2605.9,2605.3,0.21270315]
[1749131170725,3.83759306,2605.8,2605.0,0.2286]
[1749131170864,1.3399,2605.6,2605.1,6.924]
[1749131171062,3.83847689,2605.2,2605.1,6.924]
[1749131171376,3.83847689,2605.2,2605.1,1.984]
[1749131171600,3.83847689,2605.2,2605.1,9.26482218]
[1749131171796,3.83847689,2605.2,2605.1,1.984]
[1749131171998,3.83847689,2605.2,2605.1,8.913]
[1749131172397,3.83878391,2605.0,2604.5,0.2286]
[1749131172712,0.55,2605.1,2604.6,0.3548318]
[1749131172917,3.83921372,2604.7,2604.6,1.984]
[1749131173097,3.83921372,2604.7,2604.6,0.35486495]
[1749131173263,3.83921372,2604.7,2604.6,2.33886495]
[1749131173463,3.83921372,2604.7,2604.6,8.919]
[1749131173657,3.83921372,2604.7,2604.6,8.917]
[1749131173895,3.83965596,2604.4,2604.3,8.288]
[1749131174099,3.83965596,2604.4,2604.3,17.204]
[1749131174313,3.83953173,2604.5,2604.3,17.204]
[1749131174463,3.83965596,2604.4,2604.3,8.288]
[1749131174811,3.83965596,2604.4,2604.3,17.5549341]
[1749131174992,3.83965596,2604.4,2604.3,17.2]
[1749131175163,3.83965596,2604.4,2604.3,8.288]
[1749131175514,3.83965596,2604.4,2604.3,17.193]
[1749131176212,1.4156,2605.4,2604.4,0.3637]
[1749131176401,3.83950854,2604.5,2604.4,0.3637]
[1749131176603,3.83965596,2604.4,2604.3,10.0073]
[1749131176804,3.83965596,2604.4,2604.3,8.288]
[1749131177109,3.83965596,2604.4,2604.3,10.272]
[1749131177412,4.38965596,2604.4,2604.3,8.288]
[1749131177579,6.12519031,2604.4,2604.3,9.6500625]
[1749131178279,8.42019031,2604.4,2604.3,9.6500625]
[1749131178476,8.23370062,2604.4,2604.3,9.6500625]
[1749131178675,8.23370062,2604.4,2604.3,16.5710625]
[1749131178880,16.6140192,2604.4,2604.3,16.5710625]
[1749131179080,16.6140192,2604.4,2604.3,7.6660625]
[1749131179531,16.6140192,2604.4,2603.2,0.71836814]
[1749131179532,3.84127837,2603.3,2603.2,0.35466814]
[1749131179815,3.84127837,2603.3,2603.2,17.54166814]
[1749131180117,4.39127837,2603.3,2603.2,8.64166814]
[1749131180420,7.33915296,2603.3,2603.2,17.54366814]
[1749131180995,7.33915296,2603.3,2603.2,8.64166814]
[1749131181176,17.45381818,2603.3,2603.2,10.62566814]
[1749131181412,17.81083253,2603.3,2603.2,17.53666814]
[1749131181779,17.81091146,2603.3,2603.2,10.62566814]
[1749131182321,17.45381818,2603.3,2603.2,10.62566814]
[1749131182812,17.45381818,2603.3,2603.2,8.64166814]
[1749131183013,17.45381818,2603.3,2603.2,10.62566814]
[1749131183190,4.3921639,2602.7,2602.6,15.192]
[1749131183403,14.50682912,2602.7,2602.6,8.288]
[1749131183607,15.96752912,2602.7,2602.6,10.272]
[1749131183993,15.96752912,2602.7,2602.6,8.288]
[1749131184430,15.96752912,2602.7,2602.6,10.273]
[1749131184590,17.98417531,2602.7,2602.6,10.273]
[1749131185197,7.86951009,2602.7,2602.6,8.288]
[1749131185395,15.96752912,2602.7,2602.6,10.273]
[1749131185627,21.8528639,2602.7,2602.6,10.273]
[1749131185815,31.96752912,2602.7,2602.6,8.288]
[1749131186430,31.96752912,2602.7,2602.6,10.273]
[1749131186603,31.96752912,2602.7,2602.6,8.288]
[1749131186805,3.8415735,2603.1,2602.6,18.07227245]
[1749131186806,3.84159357,2603.1,2602.6,18.07227245]
[1749131187044,3.84127837,2603.3,2602.6,17.228]
[1749131187206,3.84182776,2603.0,2602.6,17.228]
[1749131187405,3.8420373,2602.8,2602.6,8.288]
[1749131187732,3.8421639,2602.7,2602.6,8.288]
[1749131188039,3.8421639,2602.7,2602.6,17.247]
[1749131188196,3.84205309,2602.8,2602.6,17.247]
[1749131188593,3.8421639,2602.7,2602.6,8.288]
[1749131188793,1.3957,2603.4,2602.6,17.45871002]
[1749131189033,3.84127837,2603.3,2602.7,0.7184]
[1749131189336,3.84201049,2602.9,2602.7,0.7184]
[1749131189736,1.4385,2603.7,2602.8,4.05553866]
[1749131189908,3.84137286,2603.3,2602.7,4.56046675]
[1749131190107,0.31746672,2603.3,2602.8,2.57031122]
[1749131190309,3.83969436,2604.4,2603.3,3.84118597]
[1749131190509,0.31746672,2604.3,2603.4,9.18358422]
[1749131190710,3.84061708,2603.8,2603.5,8.968]
[1749131190955,3.83995084,2604.2,2603.6,9.18143729]
[1749131191150,3.84054074,2603.8,2603.7,8.97]
[1749131191648,3.8400983,2604.1,2603.0,3.84159062]
[1749131191844,3.8400983,2604.1,2603.1,0.21344681]
[1749131192058,3.8400983,2604.1,2603.2,2.018]
[1749131192059,16.0,2603.9,2603.2,2.018]
[1749131192267,16.0,2603.9,2602.6,8.288]